Workbook

Sheet Painel
C3: Simulador de Faturas (Tarifas vigentes a partir de 01/01/2024)
B5: 1 - Digite o volume total consumido (m³)
B7: 2 - Clique no serviço oferecido
B10: 3 - Digite o número de economias* | E10: Categorias | G10: Número de economias | H10: Valor Água | J10: Valor Esgoto | L10: Valor Total
B11: relativas a cada categoria | E11: ResidencialSocial | H11: =IF(G11>0,Painel!G30*G11,Painel!G30) -> 0 | J11: =IF(G11>0,Painel!H30*G11,Painel!H30) -> 0 | L11: =H11+J11 -> 0
E12: Residencial | H12: =IF(G12>0,Painel!G31*G12,Painel!G31) -> 0 | J12: =IF(G12>0,Painel!H31*G12,Painel!H31) -> 0 | L12: =H12+J12 -> 0
E13: Comercial | H13: =IF(G13>0,Painel!G32*G13,Painel!G32) -> 0 | J13: =IF(G13>0,Painel!H32*G13,Painel!H32) -> 0 | L13: 0
E14: Industrial | H14: =IF(G14>0,Painel!G33*G14,Painel!G33) -> 0 | J14: =IF(G14>0,Painel!H33*G14,Painel!H33) -> 0 | L14: 0
E15: Pública | H15: =IF(G15>0,Painel!G34*G15,Painel!G34) -> 0 | J15: =IF(G15>0,Painel!H34*G15,Painel!H34) -> 0 | L15: 0
E16: Valor Total | G16: =SUM(G11:G15) -> 0 | H16: 0 | I16: 0 | J16: 0 | K16: 0 | L16: 0 | M16: 0
C18: * Economia faz referência ao número de unidades familiares, comerciais ou produtivas que existem para um mesmo hidrômetro/ligação. Existindo em um mesma construção, com hidrômetro único, três famílias e duas lojas, têm-se 3 economias residenciais e 2 economias comerciais para 1 ligação
C24: Agência Reguladora de Serviços de Abastecimento de Água e Esgotamento Sanitário do Estado de MG - ARSAE
G28: Sem multiplicar pelas economias
B29: Água e Esgoto | C29: Volume/Economias | E29: Categoria | F29: N° economias | G29: Valor Água | H29: Valor Esgoto
B30: Água e Esgoto | C30: =IFERROR(Painel!E5/Painel!G16,0) -> 0 | E30: =Painel!E11 -> ResidencialSocial | F30: =Painel!G11 -> 0 | G30: =IF(F30>0,IF(OR($B$30="Só Água",$B$30="Água e Esgoto"),IF($C$30<=$O39,L39,IF(AND($C$30>$N40,$C$30<=$O40),L40,IF(AND($C$30>$N41,$C$30<=$O41),L41,IF(AND($C$30>$N42,$C$30<=$O42),L42,IF(AND($C$30>$N43,$C$30<=$O43),L43,IF($C$30>$N44,L44,"Erro")))))),0),0) -> 0 | H30: =IF(F30>0,IF(OR($B$30="Esgoto",$B$30="Água e Esgoto"),IF($C$30<=$O39,M39,IF(AND($C$30>$N40,$C$30<=$O40),M40,IF(AND($C$30>$N41,$C$30<=$O41),M41,IF(AND($C$30>$N42,$C$30<=$O42),M42,IF(AND($C$30>$N43,$C$30<=$O43),M43,IF($C$30>$N44,M44,"Erro")))))),0),0) -> 0
E31: =Painel!E12 -> Residencial | F31: =Painel!G12 -> 0 | G31: =IF(F31>0,IF(OR($B$30="Só Água",$B$30="Água e Esgoto"),IF($C$30<=$O46,L46,IF(AND($C$30>$N47,$C$30<=$O47),L47,IF(AND($C$30>$N48,$C$30<=$O48),L48,IF(AND($C$30>$N49,$C$30<=$O49),L49,IF(AND($C$30>$N50,$C$30<=$O50),L50,IF($C$30>$N51,L51,"Erro")))))),0),0) -> 0 | H31: =IF(F31>0,IF(OR($B$30="Esgoto",$B$30="Água e Esgoto"),IF($C$30<=$O46,M46,IF(AND($C$30>$N47,$C$30<=$O47),M47,IF(AND($C$30>$N48,$C$30<=$O48),M48,IF(AND($C$30>$N49,$C$30<=$O49),M49,IF(AND($C$30>$N50,$C$30<=$O50),M50,IF($C$30>$N51,M51,"Erro")))))),0),0) -> 0
E32: =Painel!E13 -> Comercial | F32: =Painel!G13 -> 0 | G32: =IF(F32>0,IF(OR($B$30="Só Água",$B$30="Água e Esgoto"),IF($C$30<=$O53,L53,IF(AND($C$30>$N54,$C$30<=$O54),L54,IF(AND($C$30>$N55,$C$30<=$O55),L55,IF(AND($C$30>$N56,$C$30<=$O56),L56,IF(AND($C$30>$N57,$C$30<=$O57),L57,IF($C$30>$N58,L58,"Erro")))))),0),0) -> 0 | H32: =IF(F32>0,IF(OR($B$30="Esgoto",$B$30="Água e Esgoto"),IF($C$30<=$O53,M53,IF(AND($C$30>$N54,$C$30<=$O54),M54,IF(AND($C$30>$N55,$C$30<=$O55),M55,IF(AND($C$30>$N56,$C$30<=$O56),M56,IF(AND($C$30>$N57,$C$30<=$O57),M57,IF($C$30>$N58,M58,"Erro")))))),0),0) -> 0
E33: =Painel!E14 -> Industrial | F33: =Painel!G14 -> 0 | G33: =IF(F33>0,IF(OR($B$30="Só Água",$B$30="Água e Esgoto"),IF($C$30<=$O60,L60,IF(AND($C$30>$N61,$C$30<=$O61),L61,IF(AND($C$30>$N62,$C$30<=$O62),L62,IF(AND($C$30>$N63,$C$30<=$O63),L63,IF(AND($C$30>$N64,$C$30<=$O64),L64,IF($C$30>$N65,L65,"Erro")))))),0),0) -> 0 | H33: =IF(F33>0,IF(OR($B$30="Esgoto",$B$30="Água e Esgoto"),IF($C$30<=$O60,M60,IF(AND($C$30>$N61,$C$30<=$O61),M61,IF(AND($C$30>$N62,$C$30<=$O62),M62,IF(AND($C$30>$N63,$C$30<=$O63),M63,IF(AND($C$30>$N64,$C$30<=$O64),M64,IF($C$30>$N65,M65,"Erro")))))),0),0) -> 0
E34: =Painel!E15 -> Pública | F34: =Painel!G15 -> 0 | G34: =IF(F34>0,IF(OR($B$30="Só Água",$B$30="Água e Esgoto"),IF($C$30<=$O67,L67,IF(AND($C$30>$N68,$C$30<=$O68),L68,IF(AND($C$30>$N69,$C$30<=$O69),L69,IF(AND($C$30>$N70,$C$30<=$O70),L70,IF(AND($C$30>$N71,$C$30<=$O71),L71,IF($C$30>$N72,L72,"Erro")))))),0),0) -> 0 | H34: =IF(F34>0,IF(OR($B$30="Esgoto",$B$30="Água e Esgoto"),IF($C$30<=$O67,M67,IF(AND($C$30>$N68,$C$30<=$O68),M68,IF(AND($C$30>$N69,$C$30<=$O69),M69,IF(AND($C$30>$N70,$C$30<=$O70),M70,IF(AND($C$30>$N71,$C$30<=$O71),M71,IF($C$30>$N72,M72,"Erro")))))),0),0) -> 0
B36: Min | C36: Max | D36: Intervalo | E36: Categorias | F36: Faixas | G36: Tarifas | J36: Acumulado | L36: Cálculos
G37: Água | H37: Esgoto | I37: unidade | J37: Água | K37: Esgoto | L37: Água | M37: Esgoto | N37: Referência Min. | O37: Referência Max.
E38: Residencial Tarifa Social | F38: Fixa | G38: 9.54 | H38: 7.06 | I38: R$/mês | J38: =G38 -> 9.54 | K38: =H38 -> 7.06
B39: 0 | C39: 5 | D39: =C39-B39 -> 5 | F39: 0 a 5 m³ | G39: 1.09 | H39: 0.82 | I39: R$/m³ | J39: =J38+(G39*D39) -> 14.99 | K39: =K38+(H39*D39) -> 11.16 | L39: =IF($C$30<=O39,J38+(G39*($C$30-N39)),"Fora da faixa") -> 9.54 | M39: =IF($C$30<=O39,K38+(H39*($C$30-N39)),"Fora da faixa") -> 7.06 | N39: 0 | O39: 5
B40: 5 | C40: 10 | D40: =C40-B40 -> 5 | F40: > 5 a 10 m³ | G40: 2.342 | H40: 1.734 | I40: R$/m³ | J40: =J39+(G40*D40) -> 26.7 | K40: =K39+(H40*D40) -> 19.83 | L40: =IF(AND($C$30<=O40,$C$30>N40),J39+(G40*($C$30-N40)),"Fora da faixa") -> Fora da faixa | M40: =IF(AND($C$30<=O40,$C$30>N40),K39+(H40*($C$30-N40)),"Fora da faixa") -> Fora da faixa | N40: 5 | O40: 10
B41: 10 | C41: 15 | D41: =C41-B41 -> 5 | F41: > 10 a 15 m³ | G41: 3.629 | H41: 2.686 | I41: R$/m³ | J41: =J40+(G41*D41) -> 44.845 | K41: =K40+(H41*D41) -> 33.26 | L41: =IF(AND($C$30<=O41,$C$30>N41),J40+(G41*($C$30-N41)),"Fora da faixa") -> Fora da faixa | M41: =IF(AND($C$30<=O41,$C$30>N41),K40+(H41*($C$30-N41)),"Fora da faixa") -> Fora da faixa | N41: 10 | O41: 15
B42: 15 | C42: 20 | D42: =C42-B42 -> 5 | F42: > 15 a 20 m³ | G42: 4.956 | H42: 3.668 | I42: R$/m³ | J42: =J41+(G42*D42) -> 69.625 | K42: =K41+(H42*D42) -> 51.6 | L42: =IF(AND($C$30<=O42,$C$30>N42),J41+(G42*($C$30-N42)),"Fora da faixa") -> Fora da faixa | M42: =IF(AND($C$30<=O42,$C$30>N42),K41+(H42*($C$30-N42)),"Fora da faixa") -> Fora da faixa | N42: 15 | O42: 20
B43: 20 | C43: 40 | D43: =C43-B43 -> 20 | F43: > 20 a 40 m³ | G43: 12.607 | H43: 9.329 | I43: R$/m³ | J43: =J42+(G43*D43) -> 321.765 | K43: =K42+(H43*D43) -> 238.18 | L43: =IF(AND($C$30<=O43,$C$30>N43),J42+(G43*($C$30-N43)),"Fora da faixa") -> Fora da faixa | M43: =IF(AND($C$30<=O43,$C$30>N43),K42+(H43*($C$30-N43)),"Fora da faixa") -> Fora da faixa | N43: 20 | O43: 40
F44: > 40 m³ | G44: 15.381 | H44: 11.38 | I44: R$/m³ | L44: =IF($C$30>N44,J43+(G44*($C$30-N44)),"Fora da faixa") -> Fora da faixa | M44: =IF($C$30>N44,K43+(H44*($C$30-N44)),"Fora da faixa") -> Fora da faixa | N44: 40
E45: Residencial | F45: Fixa | G45: 21.23 | H45: 15.7 | I45: R$/mês | J45: =G45 -> 21.23 | K45: =H45 -> 15.7
B46: 0 | C46: 5 | D46: =C46-B46 -> 5 | F46: 0 a 5 m³ | G46: 2.2 | H46: 1.63 | I46: R$/m³ | J46: =J45+(D46*G46) -> 32.23 | K46: =K45+(D46*H46) -> 23.85 | L46: =IF($C$30<=O46,J45+(G46*($C$30-N46)),"Fora da faixa") -> 21.23 | M46: =IF($C$30<=O46,K45+(H46*($C$30-N46)),"Fora da faixa") -> 15.7 | N46: 0 | O46: 5
B47: 5 | C47: 10 | D47: =C47-B47 -> 5 | F47: > 5 a 10 m³ | G47: 4.685 | H47: 3.467 | I47: R$/m³ | J47: =J46+(D47*G47) -> 55.655 | K47: =K46+(D47*H47) -> 41.185 | L47: =IF(AND($C$30<=O47,$C$30>N47),J46+(G47*($C$30-N47)),"Fora da faixa") -> Fora da faixa | M47: =IF(AND($C$30<=O47,$C$30>N47),K46+(H47*($C$30-N47)),"Fora da faixa") -> Fora da faixa | N47: 5 | O47: 10
B48: 10 | C48: 15 | D48: =C48-B48 -> 5 | F48: > 10 a 15 m³ | G48: 7.26 | H48: 5.372 | I48: R$/m³ | J48: =J47+(D48*G48) -> 91.955 | K48: =K47+(D48*H48) -> 68.045 | L48: =IF(AND($C$30<=O48,$C$30>N48),J47+(G48*($C$30-N48)),"Fora da faixa") -> Fora da faixa | M48: =IF(AND($C$30<=O48,$C$30>N48),K47+(H48*($C$30-N48)),"Fora da faixa") -> Fora da faixa | N48: 10 | O48: 15
B49: 15 | C49: 20 | D49: =C49-B49 -> 5 | F49: > 15 a 20 m³ | G49: 9.911 | H49: 7.334 | I49: R$/m³ | J49: =J48+(D49*G49) -> 141.51 | K49: =K48+(D49*H49) -> 104.715 | L49: =IF(AND($C$30<=O49,$C$30>N49),J48+(G49*($C$30-N49)),"Fora da faixa") -> Fora da faixa | M49: =IF(AND($C$30<=O49,$C$30>N49),K48+(H49*($C$30-N49)),"Fora da faixa") -> Fora da faixa | N49: 15 | O49: 20
B50: 20 | C50: 40 | D50: =C50-B50 -> 20 | F50: > 20 a 40 m³ | G50: 12.607 | H50: 9.329 | I50: R$/m³ | J50: =J49+(D50*G50) -> 393.65 | K50: =K49+(D50*H50) -> 291.295 | L50: =IF(AND($C$30<=O50,$C$30>N50),J49+(G50*($C$30-N50)),"Fora da faixa") -> Fora da faixa | M50: =IF(AND($C$30<=O50,$C$30>N50),K49+(H50*($C$30-N50)),"Fora da faixa") -> Fora da faixa | N50: 20 | O50: 40
F51: > 40 m³ | G51: 15.381 | H51: 11.38 | I51: R$/m³ | L51: =IF($C$30>N51,J50+(G51*($C$30-N51)),"Fora da faixa") -> Fora da faixa | M51: =IF($C$30>N51,K50+(H51*($C$30-N51)),"Fora da faixa") -> Fora da faixa | N51: 40
E52: Comercial | F52: Fixa | G52: 34.39 | H52: 25.45 | I52: R$/mês | J52: =G52 -> 34.39 | K52: =H52 -> 25.45
B53: 0 | C53: 5 | D53: =C53-B53 -> 5 | F53: 0 a 5 m³ | G53: 4.76 | H53: 3.52 | I53: R$/m³ | J53: =J52+(G53*D53) -> 58.19 | K53: =K52+(H53*D53) -> 43.05 | L53: =IF($C$30<=O53,J52+(G53*($C$30-N53)),"Fora da faixa") -> 34.39 | M53: =IF($C$30<=O53,K52+(H53*($C$30-N53)),"Fora da faixa") -> 25.45 | N53: 0 | O53: 5
B54: 5 | C54: 10 | D54: =C54-B54 -> 5 | F54: > 5 a 10 m³ | G54: 7.139 | H54: 5.283 | I54: R$/m³ | J54: =J53+(G54*D54) -> 93.885 | K54: =K53+(H54*D54) -> 69.465 | L54: =IF(AND($C$30<=O54,$C$30>N54),J53+(G54*($C$30-N54)),"Fora da faixa") -> Fora da faixa | M54: =IF(AND($C$30<=O54,$C$30>N54),K53+(H54*($C$30-N54)),"Fora da faixa") -> Fora da faixa | N54: 5 | O54: 10
B55: 10 | C55: 20 | D55: =C55-B55 -> 10 | F55: > 10 a 20 m³ | G55: 9.603 | H55: 7.106 | I55: R$/m³ | J55: =J54+(G55*D55) -> 189.915 | K55: =K54+(H55*D55) -> 140.525 | L55: =IF(AND($C$30<=O55,$C$30>N55),J54+(G55*($C$30-N55)),"Fora da faixa") -> Fora da faixa | M55: =IF(AND($C$30<=O55,$C$30>N55),K54+(H55*($C$30-N55)),"Fora da faixa") -> Fora da faixa | N55: 10 | O55: 20
B56: 20 | C56: 40 | D56: =C56-B56 -> 20 | F56: > 20 a 40 m³ | G56: 12.098 | H56: 8.953 | I56: R$/m³ | J56: =J55+(G56*D56) -> 431.875 | K56: =K55+(H56*D56) -> 319.585 | L56: =IF(AND($C$30<=O56,$C$30>N56),J55+(G56*($C$30-N56)),"Fora da faixa") -> Fora da faixa | M56: =IF(AND($C$30<=O56,$C$30>N56),K55+(H56*($C$30-N56)),"Fora da faixa") -> Fora da faixa | N56: 20 | O56: 40
B57: 40 | C57: 200 | D57: =C57-B57 -> 160 | F57: > 40 a 200 m³ | G57: 14.664 | H57: 10.85 | I57: R$/m³ | J57: =J56+(G57*D57) -> 2778.115 | K57: =K56+(H57*D57) -> 2055.585 | L57: =IF(AND($C$30<=O57,$C$30>N57),J56+(G57*($C$30-N57)),"Fora da faixa") -> Fora da faixa | M57: =IF(AND($C$30<=O57,$C$30>N57),K56+(H57*($C$30-N57)),"Fora da faixa") -> Fora da faixa | N57: 40 | O57: 200
F58: > 200 m³ | G58: 17.245 | H58: 12.761 | I58: R$/m³ | L58: =IF($C$30>N58,J57+(G58*($C$30-N58)),"Fora da faixa") -> Fora da faixa | M58: =IF($C$30>N58,K57+(H58*($C$30-N58)),"Fora da faixa") -> Fora da faixa | N58: 200
E59: Industrial | F59: Fixa | G59: 34.39 | H59: 25.45 | I59: R$/mês | J59: =G59 -> 34.39 | K59: =H59 -> 25.45
B60: 0 | C60: 5 | D60: =C60-B60 -> 5 | F60: 0 a 5 m³ | G60: 4.76 | H60: 3.52 | I60: R$/m³ | J60: =J59+(G60*D60) -> 58.19 | K60: =K59+(H60*D60) -> 43.05 | L60: =IF($C$30<=O60,J59+(G60*($C$30-N60)),"Fora da faixa") -> 34.39 | M60: =IF($C$30<=O60,K59+(H60*($C$30-N60)),"Fora da faixa") -> 25.45 | N60: 0 | O60: 5
B61: 5 | C61: 10 | D61: =C61-B61 -> 5 | F61: > 5 a 10 m³ | G61: 7.139 | H61: 5.283 | I61: R$/m³ | J61: =J60+(G61*D61) -> 93.885 | K61: =K60+(H61*D61) -> 69.465 | L61: =IF(AND($C$30<=O61,$C$30>N61),J60+(G61*($C$30-N61)),"Fora da faixa") -> Fora da faixa | M61: =IF(AND($C$30<=O61,$C$30>N61),K60+(H61*($C$30-N61)),"Fora da faixa") -> Fora da faixa | N61: 5 | O61: 10
B62: 10 | C62: 20 | D62: =C62-B62 -> 10 | F62: > 10 a 20 m³ | G62: 9.603 | H62: 7.106 | I62: R$/m³ | J62: =J61+(G62*D62) -> 189.915 | K62: =K61+(H62*D62) -> 140.525 | L62: =IF(AND($C$30<=O62,$C$30>N62),J61+(G62*($C$30-N62)),"Fora da faixa") -> Fora da faixa | M62: =IF(AND($C$30<=O62,$C$30>N62),K61+(H62*($C$30-N62)),"Fora da faixa") -> Fora da faixa | N62: 10 | O62: 20
B63: 20 | C63: 40 | D63: =C63-B63 -> 20 | F63: > 20 a 40 m³ | G63: 12.098 | H63: 8.953 | I63: R$/m³ | J63: =J62+(G63*D63) -> 431.875 | K63: =K62+(H63*D63) -> 319.585 | L63: =IF(AND($C$30<=O63,$C$30>N63),J62+(G63*($C$30-N63)),"Fora da faixa") -> Fora da faixa | M63: =IF(AND($C$30<=O63,$C$30>N63),K62+(H63*($C$30-N63)),"Fora da faixa") -> Fora da faixa | N63: 20 | O63: 40
B64: 40 | C64: 200 | D64: =C64-B64 -> 160 | F64: > 40 a 200 m³ | G64: 14.664 | H64: 10.85 | I64: R$/m³ | J64: =J63+(G64*D64) -> 2778.115 | K64: =K63+(H64*D64) -> 2055.585 | L64: =IF(AND($C$30<=O64,$C$30>N64),J63+(G64*($C$30-N64)),"Fora da faixa") -> Fora da faixa | M64: =IF(AND($C$30<=O64,$C$30>N64),K63+(H64*($C$30-N64)),"Fora da faixa") -> Fora da faixa | N64: 40 | O64: 200
F65: > 200 m³ | G65: 17.245 | H65: 12.761 | I65: R$/m³ | L65: =IF($C$30>N65,J64+(G65*($C$30-N65)),"Fora da faixa") -> Fora da faixa | M65: =IF($C$30>N65,K64+(H65*($C$30-N65)),"Fora da faixa") -> Fora da faixa | N65: 200
E66: Pública | F66: Fixa | G66: 29.22 | H66: 21.63 | I66: R$/mês | J66: =G66 -> 29.22 | K66: =H66 -> 21.63
B67: 0 | C67: 5 | D67: =C67-B67 -> 5 | F67: 0 a 5 m³ | G67: 4.51 | H67: 3.33 | I67: R$/m³ | J67: =J66+(G67*D67) -> 51.77 | K67: =K66+(H67*D67) -> 38.28 | L67: =IF($C$30<=O67,J66+(G67*($C$30-N67)),"Fora da faixa") -> 29.22 | M67: =IF($C$30<=O67,K66+(H67*($C$30-N67)),"Fora da faixa") -> 21.63 | N67: 0 | O67: 5
B68: 5 | C68: 10 | D68: =C68-B68 -> 5 | F68: > 5 a 10 m³ | G68: 6.763 | H68: 5.004 | I68: R$/m³ | J68: =J67+(G68*D68) -> 85.585 | K68: =K67+(H68*D68) -> 63.3 | L68: =IF(AND($C$30<=O68,$C$30>N68),J67+(G68*($C$30-N68)),"Fora da faixa") -> Fora da faixa | M68: =IF(AND($C$30<=O68,$C$30>N68),K67+(H68*($C$30-N68)),"Fora da faixa") -> Fora da faixa | N68: 5 | O68: 10
B69: 10 | C69: 20 | D69: =C69-B69 -> 10 | F69: > 10 a 20 m³ | G69: 9.096 | H69: 6.731 | I69: R$/m³ | J69: =J68+(G69*D69) -> 176.545 | K69: =K68+(H69*D69) -> 130.61 | L69: =IF(AND($C$30<=O69,$C$30>N69),J68+(G69*($C$30-N69)),"Fora da faixa") -> Fora da faixa | M69: =IF(AND($C$30<=O69,$C$30>N69),K68+(H69*($C$30-N69)),"Fora da faixa") -> Fora da faixa | N69: 10 | O69: 20
B70: 20 | C70: 40 | D70: =C70-B70 -> 20 | F70: > 20 a 40 m³ | G70: 11.462 | H70: 8.482 | I70: R$/m³ | J70: =J69+(G70*D70) -> 405.785 | K70: =K69+(H70*D70) -> 300.25 | L70: =IF(AND($C$30<=O70,$C$30>N70),J69+(G70*($C$30-N70)),"Fora da faixa") -> Fora da faixa | M70: =IF(AND($C$30<=O70,$C$30>N70),K69+(H70*($C$30-N70)),"Fora da faixa") -> Fora da faixa | N70: 20 | O70: 40
B71: 40 | C71: 200 | D71: =C71-B71 -> 160 | F71: > 40 a 200 m³ | G71: 13.893 | H71: 10.281 | I71: R$/m³ | J71: =J70+(G71*D71) -> 2628.665 | K71: =K70+(H71*D71) -> 1945.21 | L71: =IF(AND($C$30<=O71,$C$30>N71),J70+(G71*($C$30-N71)),"Fora da faixa") -> Fora da faixa | M71: =IF(AND($C$30<=O71,$C$30>N71),K70+(H71*($C$30-N71)),"Fora da faixa") -> Fora da faixa | N71: 40 | O71: 200
F72: > 200 m³ | G72: 16.336 | H72: 12.09 | I72: R$/m³ | L72: =IF($C$30>N72,J71+(G72*($C$30-N72)),"Fora da faixa") -> Fora da faixa | M72: =IF($C$30>N72,K71+(H72*($C$30-N72)),"Fora da faixa") -> Fora da faixa | N72: 200

Sheet Tutorial
Z5: Exemplo de uso do simulador

Sheet Tabela de Tarifas
B2: De Jan 24 até Dez 24 | D2: Tarifas
B3: Categorias | C3: Faixas | D3: Água | E3: Esgoto | F3: Unidade
B4: Residencial Tarifa Social | C4: Fixa | D4: 9.54 | E4: 7.06 | F4: R$/mês
C5: 0 a 5 m³ | D5: 1.09 | E5: 0.82 | F5: R$/m³
C6: > 5 a 10 m³ | D6: 2.342 | E6: 1.734 | F6: R$/m³
C7: > 10 a 15 m³ | D7: 3.629 | E7: 2.686 | F7: R$/m³
C8: > 15 a 20 m³ | D8: 4.956 | E8: 3.668 | F8: R$/m³
C9: > 20 a 40 m³ | D9: 12.607 | E9: 9.329 | F9: R$/m³
C10: > 40 m³ | D10: 15.381 | E10: 11.38 | F10: R$/m³
B11: Residencial | C11: Fixa | D11: 21.23 | E11: 15.7 | F11: R$/mês
C12: 0 a 5 m³ | D12: 2.2 | E12: 1.63 | F12: R$/m³
C13: > 5 a 10 m³ | D13: 4.685 | E13: 3.467 | F13: R$/m³
C14: > 10 a 15 m³ | D14: 7.26 | E14: 5.372 | F14: R$/m³
C15: > 15 a 20 m³ | D15: 9.911 | E15: 7.334 | F15: R$/m³
C16: > 20 a 40 m³ | D16: 12.607 | E16: 9.329 | F16: R$/m³
C17: > 40 m³ | D17: 15.381 | E17: 11.38 | F17: R$/m³
B18: Comercial | C18: Fixa | D18: 34.39 | E18: 25.45 | F18: R$/mês
C19: 0 a 5 m³ | D19: 4.76 | E19: 3.52 | F19: R$/m³
C20: > 5 a 10 m³ | D20: 7.139 | E20: 5.283 | F20: R$/m³
C21: > 10 a 20 m³ | D21: 9.603 | E21: 7.106 | F21: R$/m³
C22: > 20 a 40 m³ | D22: 12.098 | E22: 8.953 | F22: R$/m³
C23: > 40 a 200 m³ | D23: 14.664 | E23: 10.85 | F23: R$/m³
C24: > 200 m³ | D24: 17.245 | E24: 12.761 | F24: R$/m³
B25: Industrial | C25: Fixa | D25: 34.39 | E25: 25.45 | F25: R$/mês
C26: 0 a 5 m³ | D26: 4.76 | E26: 3.52 | F26: R$/m³
C27: > 5 a 10 m³ | D27: 7.139 | E27: 5.283 | F27: R$/m³
C28: > 10 a 20 m³ | D28: 9.603 | E28: 7.106 | F28: R$/m³
C29: > 20 a 40 m³ | D29: 12.098 | E29: 8.953 | F29: R$/m³
C30: > 40 a 200 m³ | D30: 14.664 | E30: 10.85 | F30: R$/m³
C31: > 200 m³ | D31: 17.245 | E31: 12.761 | F31: R$/m³
B32: Pública | C32: Fixa | D32: 29.22 | E32: 21.63 | F32: R$/mês
C33: 0 a 5 m³ | D33: 4.51 | E33: 3.33 | F33: R$/m³
C34: > 5 a 10 m³ | D34: 6.763 | E34: 5.004 | F34: R$/m³
C35: > 10 a 20 m³ | D35: 9.096 | E35: 6.731 | F35: R$/m³
C36: > 20 a 40 m³ | D36: 11.462 | E36: 8.482 | F36: R$/m³
C37: > 40 a 200 m³ | D37: 13.893 | E37: 10.281 | F37: R$/m³
C38: > 200 m³ | D38: 16.336 | E38: 12.09 | F38: R$/m³
